[Event "Botvinnik Cup 2018"]
[Site "Moscow"]
[Date "2018.08.11"]
[Round "4"]
[White "Qalichava, Akaki"]
[Black "Korotylev, Alexey"]
[Result "0-1"]
[ECO "B00"]
[WhiteElo "1874"]
[BlackElo "2573"]
[Annotator "ChessBase"]
[PlyCount "58"]
[EventDate "2018.08.10"]
[EventCountry "RUS"]
[SourceTitle "playchess.com"]
[Source "ChessBase"]
[SourceQuality "1"]
[TimeControl "5400+30"]

1. e4 {[%emt 0:00:00]} d6 {[%emt 0:00:00]} 2. d4 {[%emt 0:00:00]} g6 {[%emt 0:00:02]} 3. f4 {[%emt 0:00:00]} Bg7 {[%emt 0:00:08]} 4. Nf3 {[%emt 0:00:09]} c5 {[%emt 0:00:04]} 5. d5 {[%emt 0:00:55]} Nf6 {[%emt 0:00:09]} 6. Nc3 {[%emt 0:00:13]} O-O {[%emt 0:00:03]} 7. Bc4 {[%emt 0:00:18]} b5 {[%emt 0:00:05]} 8. Bxb5 {[%emt 0:06:10]} Nxe4 {[%emt 0:00:02]} 9. Nxe4 {[%emt 0:09:30]} Qa5+ {[%emt 0:00:02]} 10. Nfd2 {[%emt 0:02:58]} Qxb5 {[%emt 0:00:03]} 11. c4 {[%emt 0:00:45]} Qa6 {[%emt 0:02:18]} 12. O-O {[%emt 0:24:04]} Nd7 {[%emt 0:00:28]} 13. Rf3 {[%emt 0:08:12]} Nb6 {[%emt 0:05:00]} 14. Ra3 {[%emt 0:00:35]} Qxa3 {[%emt 0:07:29]} 15. bxa3 {[%emt 0:00:11]} Bxa1 {[%emt 0:00:03]} 16. Nb3 {[%emt 0:04:49]} Bg7 {[%emt 0:02:05]} 17. Qc2 {[%emt 0:03:25]} Bd7 {[%emt 0:03:03]} 18. Bd2 {[%emt 0:08:43]} Bf5 {[%emt 0:10:04]} 19. Be1 {[%emt 0:03:26]} Rfe8 {[%emt 0:03:51]} 20. Qe2 {[%emt 0:11:38]} Bxe4 {[%emt 0:00:08]} 21. Qxe4 {[%emt 0:00:04]} e6 {[%emt 0:00:04]} 22. dxe6 {[%emt 0:00:44]} Rxe6 {[%emt 0:00:05]} 23. Qb1 {[%emt 0:00:05]} Nxc4 {[%emt 0:02:46]} 24. Bf2 {[%emt 0:01:20]} Ne3 {[%emt 0:04:38]} 25. Qc1 {[%emt 0:05:47]} Rae8 {[%emt 0:01:21]} 26. Qd2 {[%emt 0:07:40]} Ng4 {[%emt 0:01:56]} 27. Bg3 {[%emt 0:01:12]} Re2 {[%emt 0:02:50]} 28. Qd1 {[%emt 0:00:19]} Rxg2+ {[%emt 0:02:29]} 29. Kh1 {[%emt 0:00:22]} Rxg3 {[%emt 0:00:12]} 0-1

[Event "Botvinnik Cup 2018"]
[Site "Moscow"]
[Date "2018.08.11"]
[Round "4"]
[White "Sunnatov, Mirfayz"]
[Black "Tologontegin, Semetey"]
[Result "0-1"]
[ECO "B08"]
[WhiteElo "1868"]
[BlackElo "2407"]
[Annotator "NA"]
[PlyCount "76"]
[EventDate "2018.08.10"]
[EventCountry "RUS"]
[SourceTitle "playchess.com"]
[Source "ChessBase"]
[SourceQuality "1"]
[TimeControl "5400+30"]

1. d4 {[%emt 0:00:00]} g6 {[%emt 0:00:00]} 2. e4 {[%emt 0:00:00]} Bg7 {[%emt 0:00:00]} 3. Nc3 {[%emt 0:00:06]} c6 {[%emt 0:00:03]} 4. Bc4 {[%emt 0:01:26]} d6 {[%emt 0:00:23]} 5. Nf3 {[%emt 0:00:11]} Nf6 {[%emt 0:01:22]} 6. O-O {[%emt 0:00:29]} O-O {[%emt 0:01:35]} 7. h3 {[%emt 0:00:29]} b5 {[%emt 0:00:26]} 8. Bd3 {[%emt 0:00:27]} a6 {[%emt 0:01:49]} 9. Be3 {[%emt 0:00:49]} Nbd7 {[%emt 0:00:39]} 10. a4 {[%emt 0:02:35]} Bb7 {[%emt 0:00:50]} 11. Qd2 {[%emt 0:07:14]} e5 {[%emt 0:00:32]} 12. axb5 {[%emt 0:09:03]} cxb5 {[%emt 0:00:20]} 13. d5 {[%emt 0:00:07]} Qc7 {[%emt 0:00:48]} 14. Bh6 {[%emt 0:01:34]} Nc5 {[%emt 0:00:54]} 15. Bxg7 {[%emt 0:01:02]} Kxg7 {[%emt 0:00:04]} 16. Nh4 {[%emt 0:04:03]} b4 {[%emt 0:01:23]} 17. Qg5 {[%emt 0:00:51]} Qd8 {[%emt 0:00:13]} 18. Na4 {[%emt 0:12:15]} Nfxe4 {[%emt 0:00:41]} 19. Qg4 {[%emt 0:00:55]} Bc8 {[%emt 0:01:07]} 20. Qf3 {[%emt 0:03:18]} Qxh4 {[%emt 0:04:55]} 21. g3 {[%emt 0:00:21]} Ng5 {[%emt 0:00:40]} 22. Qe2 {[%emt 0:03:21]} Nxh3+ {[%emt 0:02:14]} 23. Kg2 {[%emt 0:00:01]} Nf4+ {[%emt 0:00:11]} 24. gxf4 {[%emt 0:00:01]} Bh3+ {[%emt 0:00:03]} 25. Kg1 {[%emt 0:00:25]} Qxf4 {[%emt 0:00:49]} 26. f3 {[%emt 0:01:15]} Qg3+ {[%emt 0:00:21]} 27. Kh1 {[%emt 0:00:01]} Bxf1 {[%emt 0:00:09]} 28. Qxf1 {[%emt 0:00:12]} Nxa4 {[%emt 0:00:06]} 29. Rxa4 {[%emt 0:00:05]} a5 {[%emt 0:00:02]} 30. c3 {[%emt 0:00:37]} bxc3 {[%emt 0:00:26]} 31. Rg4 {[%emt 0:00:05]} Qxg4 {[%emt 0:00:05]} 32. fxg4 {[%emt 0:00:01]} cxb2 {[%emt 0:00:01]} 33. Qb1 {[%emt 0:01:58]} Rfb8 {[%emt 0:01:10]} 34. Kg2 {[%emt 0:02:49]} a4 {[%emt 0:00:25]} 35. Kf3 {[%emt 0:01:59]} Rb3 {[%emt 0:00:23]} 36. Ke3 {[%emt 0:00:58]} a3 {[%emt 0:00:14]} 37. Qa2 {[%emt 0:00:10]} b1=Q {[%emt 0:00:10]} 38. Qxb1 {[%emt 0:00:20]} Rxb1 {[%emt 0:00:32] Kd4} 0-1

[Event "Botvinnik Cup 2018"]
[Site "Moscow"]
[Date "2018.08.11"]
[Round "4"]
[White "Sakibaev, Nursultan"]
[Black "Egin, Vladimir"]
[Result "1/2-1/2"]
[ECO "D20"]
[WhiteElo "1786"]
[BlackElo "2317"]
[Annotator "NA"]
[PlyCount "69"]
[EventDate "2018.08.10"]
[EventCountry "RUS"]
[SourceTitle "playchess.com"]
[Source "ChessBase"]
[SourceQuality "1"]
[TimeControl "5400+30"]

1. d4 {[%emt 0:00:00]} d5 {[%emt 0:00:00]} 2. c4 {[%emt 0:00:00]} dxc4 {[%emt 0:00:00]} 3. e4 {[%emt 0:00:06]} Nf6 {[%emt 0:00:00]} 4. e5 {[%emt 0:00:03]} Nd5 {[%emt 0:00:00]} 5. Bxc4 {[%emt 0:00:05]} Nb6 {[%emt 0:00:00]} 6. Bb3 {[%emt 0:00:25]} Nc6 {[%emt 0:00:08]} 7. Ne2 {[%emt 0:01:03]} Bf5 {[%emt 0:00:13]} 8. Nbc3 {[%emt 0:01:58]} e6 {[%emt 0:00:27]} 9. Be3 {[%emt 0:01:12]} Qd7 {[%emt 0:00:25]} 10. a3 {[%emt 0:09:19]} O-O-O {[%emt 0:00:13]} 11. Bc2 {[%emt 0:04:54]} Bxc2 {[%emt 0:06:18]} 12. Qxc2 {[%emt 0:00:06]} f5 {[%emt 0:00:21]} 13. b4 {[%emt 0:07:18]} Ne7 {[%emt 0:06:48]} 14. Rc1 {[%emt 0:08:26]} Ned5 {[%emt 0:01:39]} 15. Nxd5 {[%emt 0:03:36]} Nxd5 {[%emt 0:00:05]} 16. Nc3 {[%emt 0:08:43]} Qc6 {[%emt 0:03:18]} 17. Nxd5 {[%emt 0:03:02]} Qxc2 {[%emt 0:02:12]} 18. Rxc2 {[%emt 0:00:02]} Rxd5 {[%emt 0:00:04]} 19. Ke2 {[%emt 0:08:44]} Be7 {[%emt 0:01:56]} 20. Rhc1 {[%emt 0:00:43]} c6 {[%emt 0:00:12]} 21. Rc4 {[%emt 0:01:18]} Kd7 {[%emt 0:01:21]} 22. a4 {[%emt 0:02:12]} a6 {[%emt 0:00:09]} 23. Rb1 {[%emt 0:05:20]} g5 {[%emt 0:02:21]} 24. f3 {[%emt 0:01:26]} h5 {[%emt 0:03:03]} 25. Bf2 {[%emt 0:02:19]} Ra8 {[%emt 0:15:20]} 26. Rc2 {[%emt 0:02:59]} g4 {[%emt 0:05:39]} 27. f4 {[%emt 0:03:37]} Bd8 {[%emt 0:00:50]} 28. Rc5 {[%emt 0:01:04]} Be7 {[%emt 0:01:07]} 29. Rc2 {[%emt 0:02:54]} h4 {[%emt 0:03:16]} 30. Rc3 {[%emt 0:00:51]} Rg8 {[%emt 0:03:16]} 31. Rd3 {[%emt 0:02:16]} Kc7 {[%emt 0:09:18]} 32. Rbb3 {[%emt 0:00:56]} Ra8 {[%emt 0:00:30]} 33. Be1 {[%emt 0:04:32]} Rad8 {[%emt 0:10:25]} 34. Bc3 {[%emt 0:02:19]} Rg8 {[%emt 0:01:16]} 35. Be1 {[%emt 0:00:12]} 1/2-1/2

[Event "Botvinnik Cup 2018"]
[Site "Moscow"]
[Date "2018.08.11"]
[Round "4"]
[White "Orozbaev, Eldiiar"]
[Black "Egin, Vladimir"]
[Result "0-1"]
[ECO "C54"]
[WhiteElo "1763"]
[BlackElo "2317"]
[Annotator "NA"]
[PlyCount "114"]
[EventDate "2018.08.10"]
[EventCountry "RUS"]
[SourceTitle "playchess.com"]
[Source "ChessBase"]
[SourceQuality "1"]
[TimeControl "5400+30"]

1. e4 {[%emt 0:00:00]} e5 {[%emt 0:00:00]} 2. Nf3 {[%emt 0:00:00]} Nc6 {[%emt 0:00:00]} 3. Bc4 {[%emt 0:00:21]} Bc5 {[%emt 0:00:00]} 4. c3 {[%emt 0:00:05]} Nf6 {[%emt 0:00:00]} 5. d3 {[%emt 0:00:04]} a6 {[%emt 0:00:00]} 6. O-O {[%emt 0:00:35]} d6 {[%emt 0:00:06]} 7. a4 {[%emt 0:00:34]} Ba7 {[%emt 0:01:59]} 8. Be3 {[%emt 0:00:06]} O-O {[%emt 0:00:18]} 9. Nbd2 {[%emt 0:00:24]} d5 {[%emt 0:01:09]} 10. exd5 {[%emt 0:04:58]} Nxd5 {[%emt 0:00:04]} 11. Re1 {[%emt 0:01:04]} Nxe3 {[%emt 0:01:43]} 12. fxe3 {[%emt 0:00:21]} Bf5 {[%emt 0:00:17]} 13. Nf1 {[%emt 0:11:32]} Qd7 {[%emt 0:07:02]} 14. Ng3 {[%emt 0:05:28]} Bg4 {[%emt 0:04:18]} 15. b4 {[%emt 0:02:01]} Rfe8 {[%emt 0:05:52]} 16. a5 {[%emt 0:28:40]} Rad8 {[%emt 0:03:38]} 17. b5 {[%emt 0:03:07]} axb5 {[%emt 0:01:01]} 18. Bxb5 {[%emt 0:00:04]} Qd6 {[%emt 0:01:25]} 19. a6 {[%emt 0:03:40]} bxa6 {[%emt 0:03:44]} 20. Rxa6 {[%emt 0:01:14]} Bb6 {[%emt 0:02:10]} 21. Qa4 {[%emt 0:02:31]} Bd7 {[%emt 0:00:18]} 22. Ne4 {[%emt 0:06:07]} Qg6 {[%emt 0:01:10]} 23. c4 {[%emt 0:01:24]} f5 {[%emt 0:06:33]} 24. Nc3 {[%emt 0:04:36]} Nb8 {[%emt 0:03:49]} 25. Bxd7 {[%emt 0:11:51]} Nxd7 {[%emt 0:00:52]} 26. Rxb6 {[%emt 0:06:55]} Nxb6 {[%emt 0:00:33]} 27. Qa2 {[%emt 0:03:14]} Rxd3 {[%emt 0:02:44]} 28. c5+ {[%emt 0:00:15]} Qf7 {[%emt 0:04:06]} 29. Qc2 {[%emt 0:01:53]} Qc4 {[%emt 0:00:53]} 30. cxb6 {[%emt 0:00:06]} Qxc3 {[%emt 0:02:29]} 31. Qa4 {[%emt 0:00:52]} Rb8 {[%emt 0:04:03]} 32. b7 {[%emt 0:01:17]} Qb3 {[%emt 0:00:43]} 33. Qc6 {[%emt 0:00:03]} Qd5 {[%emt 0:03:15]} 34. Qxc7 {[%emt 0:00:34]} Qxb7 {[%emt 0:00:14]} 35. Qxe5 {[%emt 0:00:08]} Rd5 {[%emt 0:01:00]} 36. Qe6+ {[%emt 0:00:57]} Qf7 {[%emt 0:00:31]} 37. Qc6 {[%emt 0:00:05]} Rbd8 {[%emt 0:00:15]} 38. Nd4 {[%emt 0:01:22]} f4 {[%emt 0:01:02]} 39. Rf1 {[%emt 0:00:25]} R5d6 {[%emt 0:03:19]} 40. Qe4 {[%emt 0:00:31]} Rf6 {[%emt 0:03:00]} 41. g3 {[%emt 0:00:34]} fxe3 {[%emt 0:00:43]} 42. Re1 {[%emt 0:00:30]} Qd5 {[%emt 0:03:25]} 43. Qxd5+ {[%emt 0:00:17]} Rxd5 {[%emt 0:00:25]} 44. Nc2 {[%emt 0:00:02]} Rd2 {[%emt 0:01:02]} 45. Nxe3 {[%emt 0:00:03]} Re6 {[%emt 0:00:07]} 46. h4 {[%emt 0:01:05]} h5 {[%emt 0:02:42]} 47. Kf1 {[%emt 0:00:49]} Kf7 {[%emt 0:00:12]} 48. Kg1 {[%emt 0:00:02]} Kg6 {[%emt 0:00:15]} 49. Kf1 {[%emt 0:00:33]} Rf6+ {[%emt 0:00:22]} 50. Kg1 {[%emt 0:00:07]} Rff2 {[%emt 0:00:15]} 51. Nf1 {[%emt 0:00:55]} Rde2 {[%emt 0:00:33]} 52. Rb1 {[%emt 0:00:12]} Kf5 {[%emt 0:01:22]} 53. Rb4 {[%emt 0:00:30]} Rb2 {[%emt 0:01:15]} 54. Ra4 {[%emt 0:00:35]} Kg6 {[%emt 0:01:49]} 55. Ra6+ {[%emt 0:00:38]} Rf6 {[%emt 0:00:48]} 56. Ra5 {[%emt 0:00:13]} Rb1 {[%emt 0:00:07]} 57. Rg5+ {[%emt 0:00:22]} Kh6 {[%emt 0:00:04]} 0-1

[Event "Botvinnik Cup 2018"]
[Site "Moscow"]
[Date "2018.08.11"]
[Round "4"]
[White "Omonova, Umida"]
[Black "Tologontegin, Semetey"]
[Result "1/2-1/2"]
[ECO "B08"]
[WhiteElo "1762"]
[BlackElo "2407"]
[Annotator "NA"]
[PlyCount "92"]
[EventDate "2018.08.10"]
[EventCountry "RUS"]
[SourceTitle "playchess.com"]
[Source "ChessBase"]
[SourceQuality "1"]
[TimeControl "5400+30"]

1. e4 {[%emt 0:00:00]} g6 {[%emt 0:00:00]} 2. d4 {[%emt 0:00:00]} Bg7 {[%emt 0:00:00]} 3. Nc3 {[%emt 0:01:15]} c6 {[%emt 0:00:08]} 4. Nf3 {[%emt 0:01:32]} d6 {[%emt 0:02:15]} 5. Be2 {[%emt 0:00:11]} Nf6 {[%emt 0:00:27]} 6. O-O {[%emt 0:00:31]} Qc7 {[%emt 0:00:20]} 7. Be3 {[%emt 0:03:46]} O-O {[%emt 0:00:33]} 8. Qd2 {[%emt 0:00:48]} Ng4 {[%emt 0:00:14]} 9. Bf4 {[%emt 0:01:50]} e5 {[%emt 0:00:03]} 10. Bg3 {[%emt 0:00:44]} Nd7 {[%emt 0:00:18]} 11. h3 {[%emt 0:01:33]} Ngf6 {[%emt 0:00:06]} 12. dxe5 {[%emt 0:04:00]} dxe5 {[%emt 0:00:07]} 13. Rad1 {[%emt 0:01:06]} Re8 {[%emt 0:01:00]} 14. Bc4 {[%emt 0:01:26]} h6 {[%emt 0:01:15]} 15. Rfe1 {[%emt 0:03:24]} Nh5 {[%emt 0:00:45]} 16. Bh2 {[%emt 0:05:47]} Nb6 {[%emt 0:03:02]} 17. Bb3 {[%emt 0:01:28]} Be6 {[%emt 0:00:52]} 18. Qd6 {[%emt 0:07:34]} Qxd6 {[%emt 0:00:13]} 19. Rxd6 {[%emt 0:00:02]} Bxb3 {[%emt 0:00:04]} 20. axb3 {[%emt 0:00:19]} Bf8 {[%emt 0:00:02]} 21. Rd3 {[%emt 0:01:14]} f6 {[%emt 0:02:12]} 22. Red1 {[%emt 0:04:12]} Ng7 {[%emt 0:00:21]} 23. Nd2 {[%emt 0:07:26]} Ne6 {[%emt 0:00:46]} 24. Nc4 {[%emt 0:00:22]} Nxc4 {[%emt 0:03:49]} 25. bxc4 {[%emt 0:00:03]} Nd4 {[%emt 0:00:42]} 26. R1d2 {[%emt 0:00:46]} Bb4 {[%emt 0:02:14]} 27. Kf1 {[%emt 0:01:28]} Kf7 {[%emt 0:01:00]} 28. f4 {[%emt 0:01:58]} Bd6 {[%emt 0:01:40]} 29. Ne2 {[%emt 0:00:40]} Nxe2 {[%emt 0:00:09]} 30. Kxe2 {[%emt 0:00:02]} Bc7 {[%emt 0:00:02]} 31. Rd7+ {[%emt 0:01:37]} Re7 {[%emt 0:00:01]} 32. fxe5 {[%emt 0:01:01]} Bxe5 {[%emt 0:00:40]} 33. Bxe5 {[%emt 0:00:32]} fxe5 {[%emt 0:00:05]} 34. Ke3 {[%emt 0:00:08]} Rae8 {[%emt 0:00:22]} 35. c5 {[%emt 0:03:41]} Rxd7 {[%emt 0:00:43]} 36. Rxd7+ {[%emt 0:00:09]} Re7 {[%emt 0:00:03]} 37. Rxe7+ {[%emt 0:01:13]} Kxe7 {[%emt 0:00:38]} 38. b4 {[%emt 0:00:09]} Kf6 {[%emt 0:00:48]} 39. Kf3 {[%emt 0:00:46]} Kg5 {[%emt 0:00:07]} 40. g3 {[%emt 0:00:11]} h5 {[%emt 0:00:06]} 41. h4+ {[%emt 0:00:06]} Kf6 {[%emt 0:00:02]} 42. Ke3 {[%emt 0:00:08]} Ke6 {[%emt 0:00:28]} 43. Kd3 {[%emt 0:00:05]} Kd7 {[%emt 0:00:02]} 44. Kc4 {[%emt 0:00:07]} Kc7 {[%emt 0:00:02]} 45. Kb3 {[%emt 0:00:18]} Kb8 {[%emt 0:00:50]} 46. Ka4 {[%emt 0:00:05]} Kc7 {[%emt 0:00:16]} 1/2-1/2

[Event "Botvinnik Cup 2018"]
[Site "Moscow"]
[Date "2018.08.11"]
[Round "4"]
[White "Keller, Rostislav"]
[Black "Sevdimaliyev, Urfan"]
[Result "1/2-1/2"]
[ECO "C00"]
[WhiteElo "1735"]
[BlackElo "2388"]
[Annotator "NA"]
[PlyCount "35"]
[EventDate "2018.08.10"]
[EventCountry "RUS"]
[SourceTitle "playchess.com"]
[Source "ChessBase"]
[SourceQuality "1"]
[TimeControl "5400+30"]

1. e4 {[%emt 0:00:00]} e6 {[%emt 0:01:38]} 2. d4 {[%emt 0:00:00]} d5 {[%emt 0:00:09]} 3. Bd3 {[%emt 0:01:23]} dxe4 {[%emt 0:01:14]} 4. Bxe4 {[%emt 0:00:05]} Nf6 {[%emt 0:00:28]} 5. Bf3 {[%emt 0:00:24]} c6 {[%emt 0:01:02]} 6. Ne2 {[%emt 0:00:53]} Nbd7 {[%emt 0:02:05]} 7. O-O {[%emt 0:00:44]} Bd6 {[%emt 0:00:28]} 8. c4 {[%emt 0:03:08]} O-O {[%emt 0:01:53]} 9. Nbc3 {[%emt 0:08:50]} Re8 {[%emt 0:01:49]} 10. Qc2 {[%emt 0:02:26]} e5 {[%emt 0:02:57]} 11. Bg5 {[%emt 0:00:52]} exd4 {[%emt 0:01:07]} 12. Nxd4 {[%emt 0:00:16]} Ne5 {[%emt 0:00:36]} 13. Be4 {[%emt 0:04:10]} h6 {[%emt 0:03:21]} 14. Bxf6 {[%emt 0:15:04]} Qxf6 {[%emt 0:00:19]} 15. Rad1 {[%emt 0:01:40]} Nxc4 {[%emt 0:03:18]} 16. Bh7+ {[%emt 0:02:01]} Kh8 {[%emt 0:08:36]} 17. Ne4 {[%emt 0:00:04]} Qe7 {[%emt 0:04:45]} 18. Qxc4 {[%emt 0:01:54]} 1/2-1/2

[Event "Botvinnik Cup 2018"]
[Site "Moscow"]
[Date "2018.08.11"]
[Round "4"]
[White "Tsotsonava, Elene"]
[Black "Korotylev, Alexey"]
[Result "0-1"]
[ECO "B09"]
[WhiteElo "1701"]
[BlackElo "2573"]
[Annotator "RC"]
[PlyCount "80"]
[EventDate "2018.08.10"]
[EventCountry "RUS"]
[SourceTitle "playchess.com"]
[Source "ChessBase"]
[SourceQuality "1"]
[TimeControl "5400+30"]

1. e4 {[%emt 0:00:00]} d6 {[%emt 0:00:04]} 2. d4 {[%emt 0:00:00]} Nf6 {[%emt 0:00:06]} 3. Nc3 {[%emt 0:00:03]} g6 {[%emt 0:00:02]} 4. f4 {[%emt 0:00:08]} Bg7 {[%emt 0:00:27]} 5. Nf3 {[%emt 0:01:00]} c5 {[%emt 0:00:30]} 6. d5 {[%emt 0:13:18]} O-O {[%emt 0:00:03]} 7. a4 {[%emt 0:01:12]} e6 {[%emt 0:01:20]} 8. Be2 {[%emt 0:01:52]} exd5 {[%emt 0:00:03]} 9. exd5 {[%emt 0:00:06]} Na6 {[%emt 0:00:57]} 10. O-O {[%emt 0:00:16]} Nb4 {[%emt 0:01:53]} 11. Bc4 {[%emt 0:15:41]} Bf5 {[%emt 0:00:21]} 12. Rf2 {[%emt 0:00:57]} Ng4 {[%emt 0:02:39]} 13. Re2 {[%emt 0:00:21]} Re8 {[%emt 0:00:27]} 14. h3 {[%emt 0:12:56]} Nf6 {[%emt 0:02:42]} 15. Bb3 {[%emt 0:00:13]} c4 {[%emt 0:07:05]} 16. Bxc4 {[%emt 0:03:44]} Rxe2 {[%emt 0:00:09]} 17. Qxe2 {[%emt 0:00:33]} Nxc2 {[%emt 0:01:20]} 18. Ra2 {[%emt 0:01:33]} Nb4 {[%emt 0:01:52]} 19. Ra3 {[%emt 0:00:43]} Rc8 {[%emt 0:06:09]} 20. Rb3 {[%emt 0:01:55]} a5 {[%emt 0:00:28]} 21. Be3 {[%emt 0:00:57]} Qc7 {[%emt 0:00:10]} 22. Nd2 {[%emt 0:01:29]} h5 {[%emt 0:01:32]} 23. Qf2 {[%emt 0:01:26]} Qe7 {[%emt 0:01:52]} 24. Bb6 {[%emt 0:02:32]} Bc2 {[%emt 0:03:52]} 25. Ra3 {[%emt 0:01:09]} Bd3 {[%emt 0:03:40]} 26. Bxa5 {[%emt 0:11:59]} Bxc4 {[%emt 0:00:07]} 27. Bxb4 {[%emt 0:00:10]} Nxd5 {[%emt 0:02:00]} 28. Nxd5 {[%emt 0:01:42]} Bxd5 {[%emt 0:00:08]} 29. Rd3 {[%emt 0:00:40]} Qe6 {[%emt 0:00:12]} 30. Nf3 {[%emt 0:02:00]} Rc4 {[%emt 0:01:38]} 31. Qd2 {[%emt 0:07:10]} Bxf3 {[%emt 0:00:51]} 32. Rxf3 {[%emt 0:00:33]} d5 {[%emt 0:03:27]} 33. f5 {[%emt 0:05:34]} Qb6+ {[%emt 0:03:50]} 34. Kh1 {[%emt 0:01:02]} Qxb4 {[%emt 0:02:27]} 35. Qxd5 {[%emt 0:00:12]} Rd4 {[%emt 0:00:04]} 36. Qb3 {[%emt 0:01:59]} Qxb3 {[%emt 0:01:21]} 37. Rxb3 {[%emt 0:00:05]} Rd1+ {[%emt 0:00:12]} 38. Kh2 {[%emt 0:00:05]} Be5+ {[%emt 0:00:58]} 39. g3 {[%emt 0:00:03]} h4 {[%emt 0:00:05]} 40. Rxb7 {[%emt 0:00:16]} hxg3+ {[%emt 0:00:38]} 0-1

[Event "Botvinnik Cup 2018"]
[Site "Moscow"]
[Date "2018.08.12"]
[Round "5"]
[White "Korotylev, Alexey"]
[Black "Yedigaryan, Asya"]
[Result "1-0"]
[ECO "E70"]
[WhiteElo "2573"]
[BlackElo "1622"]
[Annotator "ChessBase"]
[PlyCount "109"]
[EventDate "2018.08.10"]
[EventCountry "RUS"]
[SourceTitle "playchess.com"]
[Source "ChessBase"]
[SourceQuality "1"]
[TimeControl "5400+30"]

1. d4 {[%emt 0:00:07]} Nf6 {[%emt 0:00:00]} 2. c4 {[%emt 0:00:29]} g6 {[%emt 0:00:00]} 3. Nc3 {[%emt 0:00:22]} Bg7 {[%emt 0:00:00]} 4. e4 {[%emt 0:00:24]} d6 {[%emt 0:00:00]} 5. Bd3 {[%emt 0:00:39]} O-O {[%emt 0:00:21]} 6. Nge2 {[%emt 0:00:03]} e5 {[%emt 0:00:39]} 7. d5 {[%emt 0:00:13]} Nbd7 {[%emt 0:00:18]} 8. O-O {[%emt 0:01:54]} Nc5 {[%emt 0:00:05]} 9. Bc2 {[%emt 0:00:24]} a5 10. f3 {[%emt 0:01:13]} Ne8 {[%emt 0:01:10]} 11. Be3 {[%emt 0:00:57]} b6 {[%emt 0:00:12]} 12. a3 {[%emt 0:02:22]} f5 {[%emt 0:07:06]} 13. exf5 {[%emt 0:01:08]} gxf5 {[%emt 0:00:57]} 14. b4 {[%emt 0:00:13]} Nd7 {[%emt 0:01:36]} 15. Rc1 {[%emt 0:07:22]} Rf7 {[%emt 0:16:27]} 16. Qd2 {[%emt 0:00:18]} Ndf6 {[%emt 0:00:47]} 17. Kh1 {[%emt 0:04:58]} Bf8 {[%emt 0:03:09]} 18. f4 {[%emt 0:02:18]} e4 {[%emt 0:01:30]} 19. Bd4 {[%emt 0:15:08]} Rg7 {[%emt 0:03:56]} 20. Nd1 {[%emt 0:01:07]} Rg6 {[%emt 0:01:32]} 21. h3 {[%emt 0:02:05]} Nh5 {[%emt 0:06:11]} 22. Qe1 {[%emt 0:00:28]} Be7 {[%emt 0:08:19]} 23. Bf2 {[%emt 0:05:54]} Bf6 {[%emt 0:02:14]} 24. Ne3 {[%emt 0:00:09]} axb4 {[%emt 0:04:54]} 25. axb4 {[%emt 0:00:12]} Ra3 {[%emt 0:00:04]} 26. Rg1 {[%emt 0:01:26]} Rh6 {[%emt 0:05:39]} 27. Rb1 {[%emt 0:02:35]} Nhg7 {[%emt 0:06:32]} 28. Bb3 {[%emt 0:00:21]} Bh4 {[%emt 0:01:37]} 29. Bxh4 {[%emt 0:00:15]} Qxh4 30. Qxh4 {[%emt 0:00:15]} Rxh4 {[%emt 0:00:33]} 31. Kh2 {[%emt 0:00:10]} Rh6 {[%emt 0:00:48]} 32. Nd4 {[%emt 0:02:48]} Bd7 {[%emt 0:01:14]} 33. Ra1 {[%emt 0:00:17]} Rxa1 {[%emt 0:00:10]} 34. Rxa1 {[%emt 0:00:04]} Kf7 {[%emt 0:01:46]} 35. Ba4 {[%emt 0:01:18]} Bxa4 {[%emt 0:00:38]} 36. Rxa4 {[%emt 0:06:34]} Rf6 {[%emt 0:00:09]} 37. Ra7 {[%emt 0:07:16]} Kg6 {[%emt 0:01:39]} 38. Ne2 {[%emt 0:01:16]} Rf7 {[%emt 0:01:04]} 39. Kg3 {[%emt 0:01:14]} c5 {[%emt 0:06:32]} 40. Ra8 {[%emt 0:03:15]} Rb7 {[%emt 0:03:26]} 41. b5 {[%emt 0:00:21]} Nc7 {[%emt 0:02:01]} 42. Rd8 {[%emt 0:00:04]} Nce8 {[%emt 0:00:07]} 43. Kf2 {[%emt 0:01:20]} Kf6 {[%emt 0:00:34]} 44. g4 {[%emt 0:04:02]} Ke7 {[%emt 0:03:48]} 45. Ra8 {[%emt 0:00:14]} Nc7 {[%emt 0:03:42]} 46. Rh8 {[%emt 0:00:57]} fxg4 {[%emt 0:01:15]} 47. hxg4 {[%emt 0:00:10]} Nce8 {[%emt 0:00:11]} 48. Rxh7 {[%emt 0:02:35]} Kf7 {[%emt 0:01:11]} 49. g5 {[%emt 0:01:21]} Kg8 {[%emt 0:00:27]} 50. Rh6 {[%emt 0:00:05]} Ra7 {[%emt 0:00:03]} 51. f5 {[%emt 0:00:27]} Ra3 {[%emt 0:00:09]} 52. Ng3 {[%emt 0:01:30]} Ra2+ {[%emt 0:00:13]} 53. Kg1 {[%emt 0:00:07]} Ra1+ {[%emt 0:00:07]} 54. Ngf1 {[%emt 0:00:11]} Rxf1+ {[%emt 0:00:25]} 55. Kxf1 {[%emt 0:00:07]} 1-0